fUSD/lending_fUSD_20251212
["ID","MTS","AMOUNT","RATE_DAILY","PERIOD"]
[398327603,1765537934291,-500.0,0.0003863,30]
[398327604,1765537934301,-500.0,0.0003863,30]
[398327605,1765537934311,-670.8,0.0003863,30]
[398327606,1765537934320,-730.51,0.0003863,30]
[398327607,1765537934330,-500.0,0.0003863,30]
[398327608,1765537934339,-500.0,0.0003863,30]
[398327609,1765537934348,-890.92,0.0003863,30]
[398327610,1765537934358,-1306.66,0.0003863,30]
[398327611,1765537934367,-500.0,0.0003863,30]
[398327612,1765537934376,-500.0,0.0003863,30]
[398327613,1765537934386,-949.39,0.0003863,30]
[398327614,1765537934395,-1193.64,0.0003863,30]
[398327615,1765537934404,-667.64,0.0003863,30]
[398327616,1765537934414,-1105.53,0.0003863,30]
[398327617,1765537934423,-500.0,0.0003863,30]
[398327618,1765537934433,-500.0,0.0003863,30]
[398327619,1765537934442,-500.0,0.0003863,30]
[398327620,1765537934451,-500.0,0.0003863,30]
[398327621,1765537934461,-500.0,0.0003863,30]
[398327622,1765537934470,-1566.37,0.0003863,30]
[398327623,1765537934479,-691.31,0.0003863,30]
[398327624,1765537934489,-500.0,0.0003863,30]
[398327625,1765537934498,-986.5,0.0003863,30]
[398327626,1765537934507,-2660.16,0.0003863,30]
[398327627,1765537934517,-500.0,0.0003863,30]
[398327628,1765537934526,-677.72,0.0003863,30]
[398327629,1765537934536,-500.0,0.0003863,30]
[398327630,1765537934545,-1062.51,0.0003863,30]
[398327631,1765537934554,-500.0,0.0003863,30]
[398327632,1765537934563,-1023.2,0.0003863,30]
[398327633,1765537934572,-765.14,0.0003863,30]
[398327634,1765537934582,-644.05027549,0.0003863,30]
[398327635,1765537934591,-2249.34,0.0003863,30]
[398327636,1765537934600,-541.12,0.0003863,30]
[398327637,1765537934610,-641.4,0.0003863,30]
[398327638,1765537934619,-500.0,0.0003863,30]
[398327639,1765537934630,-500.0,0.0003863,30]
[398327640,1765537934640,-2149.98,0.0003863,30]
[398327641,1765537934649,-1066.93,0.0003863,30]
[398327642,1765537934659,-500.0,0.0003863,30]
[398327643,1765537934669,-622.03904693,0.0003863,30]
[398327644,1765537934680,-500.0,0.0003863,30]
[398327645,1765537934690,-500.0,0.0003863,30]
[398327646,1765537934699,-500.0,0.0003863,30]
[398327647,1765537934713,-1794.3,0.0003863,30]
[398327648,1765537934723,-500.0,0.0003863,30]
[398327649,1765537934732,-6024.98,0.0003863,30]
[398327650,1765537934742,-500.0,0.0003863,30]
[398327651,1765537934751,-500.0,0.0003863,30]
[398327652,1765537934760,-652.45,0.0003863,30]
[398327653,1765537934770,-584.74,0.0003863,30]
[398327654,1765537934779,-500.0,0.0003863,30]
[398327655,1765537934793,-500.0,0.0003863,30]
[398327656,1765537934803,-500.0,0.0003863,30]
[398327657,1765537934813,-1595.92,0.0003863,30]
[398327658,1765537934823,-1243.86,0.0003863,30]
[398327659,1765537934835,-920.72,0.0003863,30]
[398327660,1765537934844,-500.0,0.0003863,30]
[398327661,1765537934854,-616.65,0.0003863,30]
[398327662,1765537934863,-500.0,0.0003863,30]
[398327663,1765537934872,-3185.29,0.0003863,30]
[398327664,1765537934882,-1899.74,0.0003863,30]
[398327665,1765537934891,-767.47,0.0003863,30]
[398327666,1765537934900,-500.0,0.0003863,30]
[398327667,1765537934910,-500.0,0.0003863,30]
[398327668,1765537934919,-3636.79,0.0003863,30]
[398327669,1765537934928,-1218.06,0.0003863,30]
[398327670,1765537934938,-500.0,0.0003863,30]
[398327671,1765537934948,-1283.24,0.0003863,30]
[398327672,1765537934957,-500.0,0.0003863,30]
[398327673,1765537934967,-500.0,0.0003863,30]
[398327674,1765537934977,-500.0,0.0003863,30]
[398327675,1765537934987,-3032.18,0.0003863,30]
[398327676,1765537934997,-500.0,0.0003863,30]
[398327677,1765537935007,-616.0,0.0003863,30]
[398327678,1765537935017,-1329.42,0.0003863,30]
[398327679,1765537935026,-500.0,0.0003863,30]
[398327680,1765537935036,-638.79,0.0003863,30]
[398327681,1765537935045,-500.0,0.0003863,30]
[398327682,1765537935055,-500.0,0.0003863,30]
[398327683,1765537935064,-500.0,0.0003863,30]
[398327684,1765537935074,-500.0,0.0003863,30]
[398327685,1765537935084,-500.0,0.0003863,30]
[398327686,1765537935094,-950.53,0.0003863,30]
[398327687,1765537935104,-664.16,0.0003863,30]
[398327688,1765537935114,-500.0,0.0003863,30]
[398327689,1765537935124,-1066.97,0.0003863,30]
[398327690,1765537935133,-599.13,0.0003863,30]
[398327691,1765537935143,-500.0,0.0003863,30]
[398327692,1765537935152,-1433.51,0.0003863,30]
[398327693,1765537935162,-500.0,0.0003863,30]
[398327694,1765537935171,-500.0,0.0003863,30]
[398327695,1765537935180,-6840.01,0.0003863,30]
[398327696,1765537935190,-500.0,0.0003863,30]
[398327697,1765537935199,-2849.13,0.0003863,30]
[398327698,1765537935208,-500.0,0.0003863,30]
[398327699,1765537935218,-500.0,0.0003863,30]
[398327700,1765537935227,-500.0,0.0003863,30]
[398327701,1765537935237,-642.56,0.0003863,30]
[398327702,1765537935246,-500.0,0.0003863,30]
[398327703,1765537935256,-500.0,0.0003863,30]
[398327704,1765537935265,-2147.05,0.0003863,30]
[398327705,1765537935275,-500.0,0.0003863,30]
[398327706,1765537935284,-6708.51,0.0003863,30]
[398327707,1765537935294,-500.0,0.0003863,30]
[398327708,1765537935304,-500.0,0.0003863,30]
[398327709,1765537935313,-500.0,0.0003863,30]
[398327710,1765537935322,-157.11653777,0.0003863,30]
[398327711,1765537935332,-1746.8,0.0003863,30]
[398327712,1765537935342,-500.0,0.0003863,30]
[398327713,1765537935352,-1135.94,0.0003863,30]
[398327714,1765537935361,-1293.36,0.0003863,30]
[398327715,1765537935370,-500.0,0.0003863,30]
[398327716,1765537935379,-500.0,0.0003863,30]
[398327717,1765537935389,-500.0,0.0003863,30]
[398327718,1765537935398,-500.0,0.0003863,30]
[398327719,1765537935407,-1510.63,0.0003863,30]
[398327720,1765537935416,-500.0,0.0003863,30]
[398327721,1765537935426,-500.0,0.0003863,30]
[398327722,1765537935435,-500.0,0.0003863,30]
[398327723,1765537935445,-911.19,0.0003863,30]
[398327724,1765537935455,-500.0,0.0003863,30]
[398327725,1765537935464,-2130.63,0.0003863,30]
[398327726,1765537935473,-500.0,0.0003863,30]
[398327727,1765537935483,-1929.57,0.0003863,30]
[398327728,1765537935493,-500.0,0.0003863,30]
[398327729,1765537935503,-1011.94,0.0003863,30]
[398327730,1765537935513,-1120.09,0.0003863,30]
[398327731,1765537935523,-657.48,0.0003863,30]
[398327732,1765537935532,-732.14,0.0003863,30]
[398327733,1765537935542,-4030.69,0.0003863,30]
[398327734,1765537935551,-500.0,0.0003863,30]
[398327735,1765537935561,-500.0,0.0003863,30]
[398327736,1765537935570,-265.06606144,0.0003863,30]
[398327737,1765537935580,-995.54,0.0003863,30]
[398327738,1765537935589,-1083.81,0.0003863,30]
[398327739,1765537935599,-726.94,0.0003863,30]
[398327740,1765537935608,-3238.19,0.0003863,30]
[398327741,1765537935618,-500.0,0.0003863,30]
[398327742,1765537935628,-608.27,0.0003863,30]
[398327743,1765537935638,-2367.27,0.0003863,30]
[398327744,1765537935924,-500.0,0.0003863,30]
[398327745,1765537935934,-500.0,0.0003863,30]
[398327746,1765537935944,-500.0,0.0003863,30]
[398327747,1765537935954,-583.32,0.0003863,30]
[398327748,1765537935963,-500.0,0.0003863,30]
[398327749,1765537935972,-500.0,0.0003863,30]
[398327750,1765537935982,-500.0,0.0003863,30]
[398327751,1765537935991,-625.74,0.0003863,30]
[398327752,1765537936001,-500.0,0.0003863,30]
[398327753,1765537936011,-500.0,0.0003863,30]
[398327754,1765537936021,-500.0,0.0003863,30]
[398327755,1765537936031,-2843.71,0.0003863,30]
[398327756,1765537936040,-1329.63,0.0003863,30]
[398327757,1765537936050,-500.0,0.0003863,30]
[398327758,1765537936059,-605.17,0.0003863,30]
[398327759,1765537936070,-500.0,0.0003863,30]
[398327760,1765537936079,-500.0,0.0003863,30]
[398327761,1765537936090,-677.17,0.0003863,30]
[398327762,1765537936100,-610.47,0.0003863,30]
[398327763,1765537936110,-1219.89,0.0003863,30]
[398327764,1765537936119,-500.0,0.0003863,30]
[398327765,1765537936129,-1003.5,0.0003863,30]
[398327766,1765537936139,-658.88,0.0003863,30]
[398327767,1765537936149,-621.26,0.0003863,30]
[398327768,1765537936159,-500.0,0.0003863,30]
[398327769,1765537936169,-500.0,0.0003863,30]
[398327770,1765537936180,-500.0,0.0003863,30]
[398327771,1765537936190,-500.0,0.0003863,30]
[398327772,1765537936200,-2089.28,0.0003863,30]
[398327773,1765537936210,-500.0,0.0003863,30]
[398327774,1765537936220,-777.33,0.0003863,30]
[398327775,1765537936230,-500.0,0.0003863,30]
[398327776,1765537936240,-500.0,0.0003863,30]
[398327777,1765537936249,-500.0,0.0003863,30]
[398327778,1765537936260,-506.96,0.0003863,30]
[398327779,1765537936270,-600.44,0.0003863,30]
[398327780,1765537936279,-500.0,0.0003863,30]
[398327781,1765537936289,-557.42,0.0003863,30]
[398327782,1765537936298,-500.0,0.0003863,30]
[398327783,1765537936319,-610.54,0.0003863,30]
[398327784,1765537936335,-500.0,0.0003863,30]
[398327785,1765537936346,-516.74,0.0003863,30]
[398327786,1765537936355,-500.0,0.0003863,15]
[398327787,1765537936364,-759.14,0.0003863,30]
[398327788,1765537936373,-571.0,0.0003863,30]
[398327789,1765537936383,-588.85,0.0003863,30]
[398327790,1765537936392,-1161.86,0.0003863,30]
[398327791,1765537936402,-1044.6,0.0003863,30]
[398327792,1765537936411,-500.0,0.0003863,30]
[398327793,1765537936421,-2199.62,0.0003863,30]
[398327794,1765537936431,-500.0,0.0003863,30]
[398327795,1765537936440,-500.0,0.0003863,30]
[398327796,1765537936450,-503.79,0.0003863,30]
[398327797,1765537936460,-500.0,0.0003863,30]
[398327798,1765537936469,-500.0,0.0003863,30]
[398327799,1765537936479,-500.0,0.0003863,30]
[398327800,1765537936489,-500.0,0.0003863,30]
[398327801,1765537936498,-500.0,0.0003863,30]
[398327802,1765537936509,-809.01,0.0003863,30]
[398327803,1765537936518,-719.27,0.0003863,30]
[398327804,1765537936528,-500.0,0.0003863,30]
[398327805,1765537936537,-578.6,0.0003863,30]
[398327806,1765537936547,-500.0,0.0003863,30]
[398327807,1765537936557,-500.0,0.0003863,30]
[398327808,1765537936567,-2620.34,0.0003863,30]
[398327809,1765537936576,-1731.68,0.0003863,30]
[398327810,1765537936585,-517.1,0.0003863,30]
[398327811,1765537936595,-2018.77,0.0003863,30]
[398327812,1765537936604,-500.0,0.0003863,30]
[398327813,1765537936614,-822.61,0.0003863,30]
[398327814,1765537936623,-500.0,0.0003863,30]
[398327815,1765537936633,-500.0,0.0003863,30]
[398327816,1765537936642,-511.8,0.0003863,30]
[398327817,1765537936651,-500.0,0.0003863,30]
[398327818,1765537936662,-500.0,0.0003863,30]
[398327819,1765537936671,-1929.49,0.0003863,30]
[398327820,1765537936680,-1245.76,0.0003863,30]
[398327821,1765537936690,-500.0,0.0003863,30]
[398327822,1765537936699,-500.0,0.0003863,30]
[398327823,1765537936709,-629.76,0.0003863,30]
[398327824,1765537936718,-503.15077383,0.0003863,30]
[398327825,1765537936731,-500.0,0.0003863,30]
[398327826,1765537936740,-500.0,0.0003863,30]
[398327827,1765537936750,-504.87,0.0003863,30]
[398327828,1765537936760,-2747.32,0.0003863,30]
[398327829,1765537936769,-3082.74,0.0003863,30]
[398327830,1765537936778,-500.0,0.0003863,30]
[398327831,1765537936788,-1765.66,0.0003863,30]
[398327832,1765537936798,-992.27,0.0003863,30]
[398327833,1765537936808,-810.69,0.0003863,30]
[398327834,1765537936817,-669.73,0.0003863,30]
[398327835,1765537936830,-1342.66,0.0003863,30]
[398327836,1765537936839,-500.0,0.0003863,30]
[398327837,1765537936849,-648.8,0.0003863,30]
[398327838,1765537936858,-500.0,0.0003863,30]
[398327839,1765537936868,-682.03,0.0003863,30]
[398327840,1765537936877,-1864.3,0.0003863,30]
[398327841,1765537936886,-500.0,0.0003863,30]
[398327842,1765537936896,-500.0,0.0003863,30]
[398327843,1765537936905,-500.0,0.0003863,30]
[398327844,1765537936914,-689.18,0.0003863,30]
[398327845,1765537936924,-598.31,0.0003863,30]
[398327846,1765537936934,-792.27,0.0003863,30]
[398327847,1765537936943,-2535.84,0.0003863,30]
[398327848,1765537936953,-500.0,0.0003863,30]
[398327849,1765537936963,-500.0,0.0003863,30]
[398327850,1765537936972,-500.0,0.0003863,30]
[398327851,1765537936982,-1454.84,0.0003863,30]
[398327852,1765537936991,-500.0,0.0003863,30]
[398327853,1765537937001,-500.0,0.0003863,30]
[398327854,1765537937011,-241.36581637,0.0003863,30]
[398327855,1765537937020,-836.48,0.0003863,30]
[398327856,1765537937030,-630.54,0.0003863,30]
[398327857,1765537937040,-716.61,0.0003863,30]
[398327858,1765537937049,-500.0,0.0003863,30]
[398327859,1765537937059,-542.7,0.0003863,30]
[398327860,1765537937068,-500.0,0.0003863,30]
[398327861,1765537937077,-625.15,0.0003863,30]
[398327862,1765537937086,-2978.69,0.0003863,30]
[398327863,1765537937096,-500.0,0.0003863,30]
[398327864,1765537937105,-500.0,0.0003863,30]
[398327865,1765537937115,-566.99,0.0003863,30]
[398327866,1765537937124,-501.3,0.0003863,30]
[398327867,1765537937133,-500.0,0.0003863,30]
[398327868,1765537937143,-1577.35,0.0003863,30]
[398327869,1765537937153,-500.0,0.0003863,30]
[398327870,1765537937162,-500.0,0.0003863,30]
[398327871,1765537937172,-500.0,0.0003863,30]
[398327872,1765537937181,-635.02209032,0.0003863,30]
[398327873,1765537937191,-500.0,0.0003863,30]
[398327874,1765537937201,-500.0,0.0003863,30]
[398327875,1765537937210,-2248.13,0.0003863,30]
[398327876,1765537937219,-556.61,0.0003863,30]
[398327877,1765537937228,-500.0,0.0003863,30]
[398327878,1765537937237,-500.0,0.0003863,30]
[398327879,1765537937246,-1673.77,0.0003863,30]
[398327880,1765537937256,-500.0,0.0003863,30]
[398327881,1765537937265,-2331.84,0.0003863,30]
[398327882,1765537937274,-1028.79,0.0003863,30]
[398327883,1765537937283,-2147.02,0.0003863,30]
[398327884,1765537937292,-1527.47,0.0003863,30]
[398327885,1765537937301,-500.0,0.0003863,30]
[398327886,1765537937310,-500.28,0.0003863,30]
[398327887,1765537937320,-500.0,0.0003863,30]
[398327888,1765537937330,-1715.19,0.0003863,30]
[398327889,1765537937339,-500.0,0.0003863,30]
[398327890,1765537937349,-594.01,0.0003863,30]
[398327891,1765537937359,-1740.0,0.0003863,30]
[398327892,1765537937369,-567.29,0.0003863,30]
[398327893,1765537937378,-500.0,0.0003863,30]
[398327894,1765537937388,-633.47,0.0003863,30]
[398327895,1765537937398,-500.0,0.0003863,30]
[398327896,1765537937408,-2330.09,0.0003863,30]
[398327897,1765537937417,-1444.41,0.0003863,30]
[398327898,1765537937427,-500.0,0.0003863,30]
[398327899,1765537937437,-500.0,0.0003863,30]
[398327900,1765537937446,-527.63,0.0003863,30]
[398327901,1765537937456,-500.0,0.0003863,30]
[398327902,1765537937465,-500.0,0.0003863,30]
[398327903,1765537937475,-563.14,0.0003863,30]
[398327904,1765537937484,-500.0,0.0003863,30]
[398327905,1765537937494,-588.23,0.0003863,30]
[398327906,1765537937503,-500.0,0.0003863,30]
[398327907,1765537937514,-500.0,0.0003863,30]
[398327908,1765537937525,-500.0,0.0003863,30]
[398327909,1765537937535,-1747.95,0.0003863,30]
[398327910,1765537937545,-500.0,0.0003863,30]
[398327911,1765537937554,-763.9,0.0003863,30]
[398327912,1765537937564,-500.0,0.0003863,30]
[398327913,1765537937573,-500.0,0.0003863,30]
[398327914,1765537937582,-818.9,0.0003863,30]
[398327915,1765537937591,-972.17,0.0003863,30]
[398327916,1765537937600,-573.6,0.0003863,30]
[398327917,1765537937610,-556.13,0.0003863,30]
[398327918,1765537937619,-500.0,0.0003863,30]
[398327919,1765537937628,-666.96,0.0003863,30]
[398327920,1765537937637,-500.0,0.0003863,30]
[398327921,1765537937646,-500.0,0.0003863,30]
[398327922,1765537937655,-500.0,0.0003863,30]
[398327923,1765537937665,-1283.05,0.0003863,30]
[398327924,1765537937674,-500.0,0.0003863,30]
[398327925,1765537937684,-798.2,0.0003863,30]
[398327926,1765537937693,-500.0,0.0003863,30]
[398327927,1765537937702,-500.0,0.0003863,30]
[398327928,1765537937711,-6586.39,0.0003863,30]
[398327929,1765537937721,-989.92,0.0003863,30]
[398327930,1765537937731,-500.0,0.0003863,30]
[398327931,1765537937741,-500.0,0.0003863,30]
[398327932,1765537937751,-502.68,0.0003863,30]
[398327933,1765537937761,-500.0,0.0003863,30]
[398327934,1765537937772,-500.0,0.0003863,30]
[398327935,1765537937782,-500.0,0.0003863,30]
[398327936,1765537937792,-500.0,0.0003863,30]
[398327937,1765537937801,-500.0,0.0003863,30]
[398327938,1765537937811,-709.01,0.0003863,30]
[398327939,1765537937821,-500.0,0.0003863,30]
[398327940,1765537937834,-500.0,0.0003863,30]
[398327941,1765537937843,-589.52,0.0003863,30]
[398327942,1765537937853,-1180.74,0.0003863,30]
[398327943,1765537937863,-529.51,0.0003863,30]
[398327944,1765537937873,-500.0,0.0003863,30]
[398327945,1765537937882,-500.0,0.0003863,30]
[398327946,1765537937892,-500.0,0.0003863,30]
[398327947,1765537937902,-500.0,0.0003863,30]
[398327948,1765537937912,-500.0,0.0003863,30]
[398327949,1765537937922,-500.0,0.0003863,30]
[398327950,1765537937932,-500.0,0.0003863,30]
[398327951,1765537937944,-720.32,0.0003863,30]
[398327952,1765537937954,-509.99,0.0003863,30]
[398327953,1765537937965,-752.38,0.0003863,30]
[398327954,1765537937975,-634.12,0.0003863,30]
[398327955,1765537937984,-500.0,0.0003863,30]
[398327956,1765537937994,-899.81,0.0003863,30]
[398327957,1765537938004,-500.0,0.0003863,30]
[398327958,1765537938014,-500.0,0.0003863,30]
[398327959,1765537938024,-1738.8,0.0003863,30]
[398327960,1765537938034,-500.0,0.0003863,30]
[398327961,1765537938043,-500.0,0.0003863,30]
[398327962,1765537938052,-622.13,0.0003863,30]
[398327963,1765537938062,-500.0,0.0003863,30]
[398327964,1765537938457,-10008.33,0.0003863,30]
[398327965,1765537938470,-500.0,0.0003863,30]
[398327966,1765537938480,-1816.12,0.0003863,30]
[398327967,1765537938490,-502.89409329,0.0003863,30]
[398327968,1765537938500,-1222.19,0.0003863,30]
[398327969,1765537938509,-500.0,0.0003863,30]
[398327970,1765537938520,-853.5,0.0003863,30]
[398327971,1765537938530,-506.67,0.0003863,30]
[398327972,1765537938539,-614.15,0.0003863,30]
[398327973,1765537938549,-500.0,0.0003863,30]
[398327974,1765537938558,-867.61,0.0003863,30]
[398327975,1765537938568,-642.79,0.0003863,30]
[398327976,1765537938578,-500.0,0.0003863,30]
[398327977,1765537938587,-1730.62,0.0003863,30]
[398327978,1765537938597,-500.0,0.0003863,30]
[398327979,1765537938606,-283.5759654,0.0003863,30]
[398327980,1765537938616,-500.0,0.0003863,30]
[398327981,1765537938626,-2044.69,0.0003863,30]
[398327982,1765537938635,-500.0,0.0003863,30]
[398327983,1765537938645,-5043.62,0.0003863,30]
[398327984,1765537938654,-500.0,0.0003863,30]
[398327985,1765537938663,-500.0,0.0003863,30]
[398327986,1765537938673,-500.0,0.0003863,30]
[398327987,1765537938683,-1215.55,0.0003863,30]
[398327988,1765537938692,-500.0,0.0003863,30]
[398327989,1765537938702,-500.0,0.0003863,30]
[398327990,1765537938712,-500.0,0.0003863,30]
[398327991,1765537938722,-500.0,0.0003863,30]
[398327992,1765537938731,-500.0,0.0003863,30]
[398327993,1765537938741,-1545.49,0.0003863,30]
[398327994,1765537938750,-500.0,0.0003863,30]
[398327995,1765537938760,-660.88,0.0003863,30]
[398327996,1765537938771,-1589.48,0.0003863,30]
[398327997,1765537938781,-628.02,0.0003863,30]
[398327998,1765537938790,-500.0,0.0003863,30]
[398327999,1765537938803,-500.0,0.0003863,30]
[398328000,1765537938812,-626.53,0.0003863,30]
[398328001,1765537938822,-602.06,0.0003863,30]
[398328002,1765537938835,-500.0,0.0003863,30]
[398328003,1765537938852,-840.42,0.0003863,30]
[398328004,1765537938867,-500.0,0.0003863,30]
[398328005,1765537938877,-699.47,0.0003863,30]
[398328006,1765537938887,-905.19,0.0003863,30]
[398328007,1765537938896,-2585.93,0.0003863,30]
[398328008,1765537938906,-752.57,0.0003863,30]
[398328009,1765537938915,-789.34,0.0003863,30]
[398328010,1765537938934,-3440.78,0.0003863,30]
[398328011,1765537938943,-500.0,0.0003863,30]
[398328012,1765537938954,-500.0,0.0003863,30]
[398328013,1765537938963,-563.79,0.0003863,30]
[398328014,1765537938973,-500.0,0.0003863,30]
[398328015,1765537938983,-500.0,0.0003863,30]
[398328016,1765537938994,-500.0,0.0003863,30]
[398328017,1765537939004,-500.0,0.0003863,30]
[398328018,1765537939014,-1586.65,0.0003863,30]
[398328019,1765537939024,-500.0,0.0003863,30]
[398328020,1765537939034,-530.54860017,0.0003863,30]
[398328021,1765537939044,-571.37,0.0003863,30]
[398328022,1765537939054,-510.91346991,0.0003863,30]
[398328023,1765537939063,-637.45096542,0.0003863,30]
[398328024,1765537939073,-500.54,0.0003863,30]
[398328025,1765537939083,-500.0,0.0003863,30]
[398328026,1765537939093,-500.0,0.0003863,30]
[398328027,1765537939103,-509.62,0.0003863,30]
[398328028,1765537939112,-669.04,0.0003863,30]
[398328029,1765537939122,-3771.23,0.0003863,30]
[398328030,1765537939132,-500.0,0.0003863,30]
[398328031,1765537939141,-813.18,0.0003863,30]
[398328032,1765537939151,-500.0,0.0003863,30]
[398328033,1765537939160,-1179.73,0.0003863,30]
[398328034,1765537939170,-500.0,0.0003863,30]
[398328035,1765537939180,-500.0,0.0003863,30]
[398328036,1765537939190,-1235.8,0.0003863,30]
[398328037,1765537939199,-1360.54,0.0003863,30]
[398328038,1765537939209,-604.12,0.0003863,30]
[398328039,1765537939218,-500.0,0.0003863,30]
[398328040,1765537939227,-500.0,0.0003863,30]
[398328041,1765537939237,-500.0,0.0003863,30]
[398328042,1765537939246,-500.0,0.0003863,30]
[398328043,1765537939255,-500.0,0.0003863,2]
[398328044,1765537939265,-500.0,0.0003863,30]
[398328045,1765537939275,-500.0,0.0003863,30]
[398328046,1765537939284,-500.0,0.0003863,30]
[398328047,1765537939294,-500.0,0.0003863,30]
[398328048,1765537939303,-972.77,0.0003863,30]
[398328049,1765537939313,-500.0,0.0003863,30]
[398328050,1765537939322,-500.0,0.0003863,30]
[398328051,1765537939332,-500.0,0.0003863,30]
[398328052,1765537939342,-500.0,0.0003863,30]
[398328053,1765537939352,-500.0,0.0003863,30]
[398328054,1765537939361,-4363.05,0.0003863,30]
[398328055,1765537939371,-731.82,0.0003863,30]
[398328056,1765537939381,-1625.02,0.0003863,30]
[398328057,1765537939390,-1418.58,0.0003863,30]
[398328058,1765537939399,-500.0,0.0003863,30]
[398328059,1765537939410,-500.0,0.0003863,30]
[398328060,1765537939419,-500.0,0.0003863,30]
[398328061,1765537939429,-500.0,0.0003863,30]
[398328062,1765537939439,-500.0,0.0003863,30]
[398328063,1765537939448,-500.0,0.0003863,30]
[398328064,1765537939457,-500.0,0.0003863,30]
[398328065,1765537939467,-500.0,0.0003863,30]
[398328066,1765537939477,-805.19,0.0003863,30]
[398328067,1765537939486,-1679.93,0.0003863,30]
[398328068,1765537939495,-500.0,0.0003863,30]
[398328069,1765537939504,-500.0,0.0003863,30]
[398328070,1765537939513,-500.0,0.0003863,30]
[398328071,1765537939523,-11739.26,0.0003863,30]
[398328072,1765537939532,-510.13,0.0003863,30]
[398328073,1765537939542,-500.0,0.0003863,30]
[398328074,1765537939551,-500.0,0.0003863,30]
[398328075,1765537939561,-500.0,0.0003863,30]
[398328076,1765537939571,-1704.19,0.0003863,30]
[398328077,1765537939580,-878.65,0.0003863,30]
[398328078,1765537939590,-500.0,0.0003863,30]
[398328079,1765537939599,-619.07,0.0003863,30]
[398328080,1765537939609,-521.46971554,0.0003863,30]
[398328081,1765537939618,-2892.66,0.0003863,30]
[398328082,1765537939628,-500.0,0.0003863,30]
[398328083,1765537939638,-500.0,0.0003863,30]
[398328084,1765537939648,-500.0,0.0003863,30]
[398328085,1765537939657,-500.0,0.0003863,30]
[398328086,1765537939667,-1899.29,0.0003863,30]
[398328087,1765537939677,-204.0718074,0.0003863,30]
[398328088,1765537939686,-500.0,0.0003863,30]
[398328089,1765537939696,-1019.28,0.0003863,30]
[398328090,1765537939705,-500.0,0.0003863,30]
[398328091,1765537939714,-500.0,0.0003863,30]
[398328092,1765537939724,-1418.57,0.0003863,30]
[398328093,1765537939734,-593.92627849,0.0003863,30]
[398328094,1765537939744,-500.0,0.0003863,30]
[398328095,1765537939753,-500.0,0.0003863,30]
[398328096,1765537939763,-500.0,0.0003863,30]
[398328097,1765537939773,-504.12096001,0.0003863,30]
[398328098,1765537939783,-500.0,0.0003863,30]
[398328099,1765537939793,-500.0,0.0003863,30]
[398328100,1765537939802,-736.31,0.0003863,30]
[398328101,1765537939812,-500.0,0.0003863,30]
[398328102,1765537939822,-502.64179536,0.0003863,30]